Cogmind - Beta 13 @@@ ROGUE MODE // 2024.05.09 @ 18:32:15 Player: P9H Result: Destroyed by G-34 Mercenary with Small Laser Performance ------------- Evolutions (1) 500 Regions Visited (2) 400 Robots Destroyed (25) 125 Value Destroyed (597) 597 Prototype IDs (1) 20 Alien Tech Used (0) 0 Bonus (0) 0 TOTAL SCORE: 1642 Bonus ------- None Cogmind --------- Core Integrity 0/400 Matter 300/300 Energy 425/430 System Corruption 0% Temperature Cool (66) Movement Treading (320) Ox2 Location -9/Materials Parts ------- > --- POWER (2) -------- Ion Engine Cooled Ion Engine > --- PROPULSION (2) --- Light Treads Light Treads > --- UTILITY (3) ------ Huge Storage Unit Salvage Targeting Computer Utility Shielding > --- WEAPON (2) ------- EM Pulse Gun Small Laser > --- INVENTORY (25) --- Light Treads Light Treads Wheel Heat Sink Small Laser Peak State ------------ > --- POWER ------------ Ion Engine Cooled Ion Engine > --- PROPULSION ------- Wheel Compact Wheel > --- UTILITY ---------- Small Storage Unit Power Shielding Propulsion Shielding > --- WEAPON ----------- Light Assault Rifle Grenade Launcher > --- INVENTORY -------- Ion Engine Light Treads Light Treads Wheel Wheel EM Pulse Gun EM Shotgun Spread Laser [Rating: 12] Favorites ----------- Power Ion Engine Engine Ion Engine Propulsion Wheel Treads Light Treads Leg Aluminum Leg Wheel Wheel Utility Propulsion Shielding Device Heat Sink Storage Small Storage Unit Processor Salvage Targeting Computer Protection Propulsion Shielding Weapon Grenade Launcher Energy Gun EM Pulse Gun Ballistic Gun Heavy Assault Rifle Launcher Grenade Launcher Build | -11 -10 -9 ------- Run | Yrd Mat Mat Slots Evolved 2 | . . 2 Power 1 | . . 1 Propulsion . | . . . Utility 1 | . . 1 Weapon . | . . . Parts Attached 36 | 8 2 26 Power 7 | 1 . 6 Engine 7 | 1 . 6 Core . | . . . Reactor . | . . . Propulsion 7 | 3 . 4 Treads 2 | . . 2 Leg 1 | 1 . . Wheel 4 | 2 . 2 Hover . | . . . Flight . | . . . Utility 7 | 1 1 5 Device 1 | . . 1 Storage 2 | 1 . 1 Processor 1 | . . 1 Hackware . | . . . Protection 3 | . 1 2 Artifact . | . . . Weapon 15 | 3 1 11 Energy Gun 8 | 2 . 6 Energy Cannon . | . . . Ballistic Gun 6 | 1 . 5 Ballistic Cannon . | . . . Launcher 1 | . 1 . Special Weapon . | . . . Impact Weapon . | . . . Slashing Weapon . | . . . Piercing Weapon . | . . . Special Melee Weapon . | . . . Unidentified Prototypes 1 | . . 1 Parts Lost 12 | . . 12 Power 3 | . . 3 Propulsion 2 | . . 2 Utility 2 | . . 2 Weapon 5 | . . 5 Highest Loss Streak 8 | . . 8 To Critical Strikes . | . . . Average Slot Usage (%) 89 | . 89 88 Engine 16 | . 14 16 Treads 3 | . . 4 Wheel 18 | . 28 16 Storage 11 | . 14 11 Protection 15 | . 4 17 Energy Gun 4 | . 4 4 Ballistic Gun 12 | . 14 12 Launcher 4 | . 9 3 Naked Turns . | . . . Heaviest Build 98 | 13 15 98 Greatest Support 40 | 26 26 40 Greatest Overweight (x) 4 | . . 4 Average Overweight (x) 1 | . . 1 Largest Inventory Capacity 25 | 8 8 25 Average Capacity 15 | 6 8 17 Most Carried 13 | 7 8 13 Average Carried 8 | 4 7 8 Final Capacity 25 | 8 8 25 Final Carried 8 | 6 8 5 Class Distribution -------------------- 91% | Mutant 8% | Scavenger-Mutant Dominant Class ---------------- Mutant | -10/Materials Mutant | -9/Materials Resources | -11 -10 -9 ----------- Run | Yrd Mat Mat Matter Collected 759 | 199 135 425 Remotely . | . . . Salvage Created 657 | . 74 583 Parts 44 | . 2 42 Haulers Intercepted . | . . . Recyclers Shooed . | . . . Parts Field Recycled . | . . . Retrieved Matter . | . . . Parts Self-Destructed . | . . . Prevented . | . . . Kills | -11 -10 -9 ------- Run | Yrd Mat Mat Combat Hostiles Destroyed 19 | . 2 17 Guns 11 | . . 11 AOE 8 | . 2 6 Classes Destroyed 7 | . 2 5 Worker 3 | . 1 2 Builder 2 | . . 2 Watcher 1 | . . 1 Swarmer 7 | . . 7 Grunt 7 | . 2 5 Duelist 1 | . . 1 Sentry 4 | . . 4 Best Kill Streak 6 | . 2 6 Combat Bots Only 4 | . 1 4 Max Kills in Single Turn 4 | . 2 4 Gunslinging . | . . . Exploded 3 | . 1 3 Melee . | . . . Uniques/NPCs Destroyed . | . . . Combat | -11 -10 -9 -------- Run | Yrd Mat Mat Hostile Shots Fired 112 | . 2 110 Missed 16 | . . 16 Damage Taken 1577 | . 95 1482 Core 438 | . 37 401 Absorbed by Shields . | . . . Redirected to Shielding 110 | . 4 106 Core Remaining (%) 92 | 100 85 . Volleys Fired 65 | . 5 60 Largest 2 | . 2 2 Hottest 110 | . 50 110 Shots Fired 110 | . 9 101 Gun 95 | . 5 90 Cannon . | . . . Launcher 15 | . 4 11 Special . | . . . Kinetic 55 | . 5 50 Thermal 14 | . . 14 Explosive 15 | . 4 11 Electromagnetic 26 | . . 26 Robot Hit Streak 14 | . 3 14 Robot Miss Streak 5 | . 5 5 Penetration Max . | . . . Secondary Targets 1 | . . 1 Max Gunslinging Chain 1 | . . 1 Shots Hit Robots 74 | . 4 70 Core Hits 44 | . 5 39 Critical Kills . | . . . Critical Parts Destroyed 1 | . . 1 Critical Strikes 1 | . . 1 Destroy 1 | . . 1 Melee Attacks . | . . . Impact . | . . . Slashing . | . . . Piercing . | . . . Sneak Attacks . | . . . Combat Hostiles . | . . . Follow-up Attacks . | . . . Damage Inflicted 1666 | . 188 1478 Guns 843 | . 17 826 Cannons . | . . . Explosions 702 | . 171 531 Melee . | . . . Ramming 121 | . . 121 Kinetic 389 | . 17 372 Thermal 262 | . . 262 Explosive 594 | . 171 423 Electromagnetic 300 | . . 300 Impact . | . . . Slashing . | . . . Piercing . | . . . Highest Corruption . | . . . Average Corruption . | . . . Corruption Purged . | . . . Corruption Blocked . | . . . Overload Shots . | . . . Overflow Damage 38 | . . 38 Projectiles . | . . . Explosions 38 | . . 38 Melee . | . . . Knockbacks . | . . . Impact . | . . . Kinetic . | . . . Secondary . | . . . Self-Inflicted Damage 319 | . 71 248 Shots 10 | . 3 7 Rammed 12 | . . 12 Targets Rammed 12 | . . 12 Kicked . | . . . Crushed . | . . . Highest Temperature 156 | . 10 156 Average Temperature 45 | . 7 49 Received Heat Transfer 438 | . 15 423 Siege Activations . | . . . Robots Corrupted . | . . . Combat Hostiles . | . . . Parts Fried 1 | . . 1 Impact Corruptions 1 | . . 1 Robots Melted . | . . . Combat Hostiles . | . . . Parts Melted . | . . . Heat Transferred 325 | . . 325 Parts Sabotaged . | . . . Parts Stolen . | . . . Parts Stripped . | . . . Power Chain Reactions 1 | . . 1 Alert | -11 -10 -9 ------- Run | Yrd Mat Mat Peak Influence 373 | . 126 373 Initial 52 | . . 52 Average 172 | . 32 212 Maximum Alert Level 1 | . . 1 Low Security (%) 46 | 100 100 32 Level 1 53 | . . 67 Level 2 . | . . . Level 3 . | . . . Level 4 . | . . . Level 5 . | . . . High Security . | . . . Max Security . | . . . Squads Dispatched 6 | . 1 5 Investigation 1 | . . 1 Extermination . | . . . Reinforcement 5 | . 1 4 Assault . | . . . Garrison . | . . . Intercept . | . . . Searches Triggered . | . . . Construction Impeded 2 | . . 2 Haulers Reinforced . | . . . Active Scanning Responses . | . . . Cargo Convoy Interrupts . | . . . Stealth | -11 -10 -9 --------- Run | Yrd Mat Mat Distress Signals 1 | . . 1 Communications Jammed . | . . . Distress Signals . | . . . Times Spotted 35 | . 6 29 Peak Tracking Total 5 | . 3 5 Tactical Retreats 1 | . . 1 Traps | -11 -10 -9 ------- Run | Yrd Mat Mat Traps Triggered 1 | . . 1 Indirectly . | . . . Trap Hack Attempts . | . . . Triggered . | . . . Disarmed . | . . . Reprogrammed . | . . . Reused . | . . . Traps Extracted . | . . . Installed . | . . . Triggered . | . . . Machines | -11 -10 -9 ---------- Run | Yrd Mat Mat Machines Disabled 2 | . 1 1 Max in Single Turn 1 | . 1 1 Machines Repaired . | . . . Machines Dismantled . | . . . Machines Sabotaged . | . . . Overloaded Fab Kills . | . . . Hacking | -11 -10 -9 --------- Run | Yrd Mat Mat Machines Accessed 2 | . . 2 Terminals 2 | . . 2 Fabricators . | . . . Repair Stations . | . . . Recycling Units . | . . . Scanalyzers . | . . . Garrison Access . | . . . Total Hacks 8 | . . 8 Successful 4 | . . 4 Failed 4 | . . 4 Catastrophic 1 | . . 1 Database Lockouts . | . . . Manual . | . . . Terminals 8 | . . 8 Fabricators . | . . . Repair Stations . | . . . Recycling Units . | . . . Scanalyzers . | . . . Garrison Access . | . . . Terminal Hacks 4 | . . 4 Record 2 | . . 2 Emergency Access Points 1 | . . 1 Zone Layout 1 | . . 1 Fabricator Hacks . | . . . Repair Station Hacks . | . . . Recycling Unit Hacks . | . . . Scanalyzer . | . . . Garrison Access Hacks . | . . . Unauthorized Hacks . | . . . Terminals . | . . . Fabricators . | . . . Repair Stations . | . . . Recycling Units . | . . . Scanalyzers . | . . . Garrison Access . | . . . Data Cores Recovered . | . . . Used . | . . . Hacking Detections 2 | . . 2 Full Trace Events 1 | . . 1 Feedback Events . | . . . Feedback Blocked . | . . . Robot Schematics Acquired . | . . . Robots Built . | . . . Authchips . | . . . Time . | . . . Total Robot Build Rating . | . . . Part Schematics Acquired . | . . . Parts Built . | . . . Authchips . | . . . Time . | . . . Total Part Build Rating . | . . . Parts Repaired . | . . . Time . | . . . Parts Recycled . | . . . Recycled Matter . | . . . Retrieved Matter . | . . . Retrieved Components . | . . . Parts Scanalyzed . | . . . Part Schematics Acquired . | . . . Parts Damaged . | . . . Bothacking | -11 -10 -9 ------------ Run | Yrd Mat Mat Used RIF Installer . | . . . Robots Hacked . | . . . Non-combat . | . . . Combat . | . . . Robot Hacks Applied . | . . . Relay Couplers Released . | . . . Fabnet Peak Effective % . | . . . Robots Rewired . | . . . Allies Hacked . | . . . Hacks Repelled . | . . . Allies | -11 -10 -9 -------- Run | Yrd Mat Mat Total Allies . | . . . Largest Group . | . . . Highest-Rated Group . | . . . Highest-Rated Ally . | . . . Total Orders . | . . . Ally Attacks . | . . . Total Damage . | . . . Kills . | . . . Allies Corrupted . | . . . Allies Melted . | . . . Intel | -11 -10 -9 ------- Run | Yrd Mat Mat Robot Analysis Total . | . . . Derelict Logs Recovered . | . . . Drone Launches . | . . . Drone Recoveries . | . . . Exploration | -11 -10 -9 ------------- Run | Yrd Mat Mat Turns Passed 1105 | 59 177 869 Spaces Moved 747 | 50 177 520 Core 15 | 15 . . Treads 33 | . . 33 Legs 4 | 4 . . Wheels 695 | 31 177 487 Hover . | . . . Flight . | . . . Fastest Speed 50 | 50 90 80 Average Speed 111 | 81 90 121 Slowest Speed 480 | 120 90 480 Overloaded Moves . | . . . Propulsion Burnouts . | . . . Robots Hopped . | . . . Cave-ins Triggered . | . . . Exploration Rate (%) 25 | 4 29 44 Regions Visited 2 Branch Regions . Pre-discovered Areas . | . . . Known Exits Taken . | . . . Unknown Exits Taken 2 | 1 1 . Scrap Searched . | . . . Spaces Dug . | . . . Terrain Destroyed 109 | . 29 80 Melee . | . . . Projectile . | . . . AOE 109 | . 29 80 Terrain Rammed . | . . . Walls Destroyed . | . . . Machines Disabled . | . . . Actions | -11 -10 -9 --------- Run | Yrd Mat Mat Total 907 | 66 185 656 Wait 14 | . . 14 Move 745 | 49 176 520 Hop . | . . . Pick Up 24 | 7 2 15 Fast Attach 7 | 5 1 1 Attach 18 | 3 . 15 Detach 3 | 2 . 1 Swap 11 | . 1 10 Drop 8 | . . 8 Fire 65 | . 5 60 Melee . | . . . Ram 12 | . . 12 Kick . | . . . Crush . | . . . Escape Stasis . | . . . Rewire . | . . . Trap . | . . . Miscellaneous . | . . . Route ------- -11/Scrapyard -10/Materials -9/Materials (discovered 1 exit: [*Sto]) History --------- Turn | Location | Event 6 | -11/Scrapyard | Discovered new exit (range 16) 60 | -11/Scrapyard | Entered Materials 198 | -10/Materials | Discovered new exit (range 5) 237 | -10/Materials | Entered another Materials area 237 | -9/Materials | Evolved 2 slots: Power x1, Utility x1 314 | -9/Materials | Build established: Mutant 914 | -9/Materials | Core integrity fell below 50% 934 | -9/Materials | Lost 8 parts (2p2n2u2w) 1037 | -9/Materials | Discovered new exit (range 16) 1061 | -9/Materials | Core integrity fell below 20% 1106 | -9/Materials | Destroyed by G-34 Mercenary with Small Laser Last Messages --------------- 00979_ Acquired 10 matter. 00981_ Acquired 5 matter. 00985_ R-06 Scavenger collects Sml. Laser. 00991_ R-06 Scavenger collects Aluminum Leg. 01037_ EXIT=FOUND 01051_ K-01 Serf collects debris. 01069_ Y-45 Defender destroyed. 01071_ ALERT: Hostiles spotted, dispatching reinforcements to Terminal M009. 01072_ K-01 Serf collects debris. 01076_ R-06 Scavenger collects Corrupted Heat Sink. 01080_ K-01 Serf collects debris. 01083_ Acquired 25 matter. 01084_ K-01 Serf collects debris. 01093_ Imp. Ion Engine fried. 01093_ Y-45 Defender destroyed. 01093_ K-01 Serf collects debris. 01102_ K-01 Serf destroyed. 01102_ K-01 Serf collects debris. Map ----- +----------------------------------------------------+ | #???????????????????????????????????????????????? | | #???????????????????????????????????????????????? | | ????????????????????????????????????????????????? | | ?????????????????????????????????????????????????? | | ?????????????????????????????????????????????????? | | ?????????????????????????????????????????????????? | | ?????????????????????????????????????????????????? | | ?????????????????????????????????????????????????? | | ?????????????????????????????????????????????????? | | ?????????????????????????????????????????????????? | | ??????????????????????" ???????????????????????? | | ??????????????????????" ???????????????????????? | | ?????????????????????"" ???????????????????????? | | ????????????????????? #??????????????????????? | | ???????????????? ???? #????????!?????????????? | | ????????????????? """ #???????! #????????????? | | ??????????????? ? """ #???? ?????????????? | | ???????????????#|? """ #????" ??????????????? | | ???????????????# #???"" ???????????????? | | ???????????????# #???"" ????????????????? | | ##############?# """ #?? ?????????????????? | | [ # ## """ ###+########## ???????? | | # """ ??????? | | + =!g